fUST/lending_fUST_20251216
["ID","MTS","AMOUNT","RATE_DAILY","PERIOD"]
[398622000,1765877440620,-500.0,0.00010958,2]
[398622001,1765877440629,-524.01029454,0.00010958,2]
[398622002,1765877440638,-500.0,0.00010958,2]
[398622003,1765877440647,-500.0,0.00010958,2]
[398622004,1765877440656,-500.0,0.00010958,2]
[398622005,1765877440665,-500.0,0.00010958,2]
[398622006,1765877440674,-500.0,0.00010958,2]
[398622007,1765877440684,-500.0,0.00010958,2]
[398622008,1765877440692,-500.0,0.00010958,2]
[398622009,1765877440701,-500.0,0.00010958,2]
[398622010,1765877440711,-500.0,0.00010958,2]
[398622011,1765877440720,-500.0,0.00010958,2]
[398622012,1765877440729,-500.0,0.00010958,2]
[398622013,1765877440738,-500.0,0.00010958,2]
[398622014,1765877440746,-500.0,0.00010958,2]
[398622015,1765877440755,-500.0,0.00010958,2]
[398622016,1765877440764,-500.0,0.00010958,2]
[398622017,1765877440773,-500.0,0.00010958,2]
[398622018,1765877440782,-500.0,0.00010958,2]
[398622019,1765877440791,-500.0,0.00010958,2]
[398622020,1765877440800,-500.0,0.00010958,2]
[398622021,1765877440809,-500.0,0.00010958,2]
[398622022,1765877440818,-500.0,0.00010958,2]
[398622023,1765877440827,-500.0,0.00010958,2]
[398622024,1765877440837,-500.0,0.00010958,2]
[398622025,1765877440846,-500.0,0.00010958,2]
[398622026,1765877440855,-500.0,0.00010958,2]
[398622027,1765877440864,-500.0,0.00010958,2]
[398622028,1765877440873,-500.0,0.00010958,2]
[398622029,1765877440882,-500.0,0.00010958,2]
[398622030,1765877440891,-500.0,0.00010958,2]
[398622031,1765877440900,-500.0,0.00010958,2]
[398622032,1765877440910,-500.0,0.00010958,2]
[398622033,1765877440923,-500.0,0.00010958,2]
[398622034,1765877440932,-500.0,0.00010958,2]
[398622035,1765877440941,-500.0,0.00010958,2]
[398622036,1765877440950,-500.0,0.00010958,2]
[398622037,1765877440959,-500.0,0.00010958,2]
[398622038,1765877440968,-500.0,0.00010958,2]
[398622039,1765877440977,-500.0,0.00010958,2]
[398622040,1765877440986,-138.16183627,0.00010958,2]
[398622242,1765877443374,-300.0,0.00010958,2]
[398622259,1765877443532,-61.83816373,0.00010958,2]
[398622261,1765877443542,-500.0,0.00010958,2]
[398622263,1765877443551,-500.0,0.00010958,2]
[398622265,1765877443561,-500.0,0.00010958,2]
[398622267,1765877443570,-215.15630447,0.00010958,2]
[398622270,1765877443582,-284.84369553,0.00010958,2]
[398622272,1765877443591,-500.0,0.00010958,2]
[398622275,1765877443600,-500.0,0.00010958,2]
[398622278,1765877443614,-500.0,0.00010958,2]
[398622281,1765877443623,-500.0,0.00010958,2]
[398622283,1765877443633,-500.0,0.00010958,2]
[398622286,1765877443643,-500.0,0.00010958,2]
[398622289,1765877443652,-500.0,0.00010958,2]
[398622291,1765877443661,-500.0,0.00010958,2]
[398622294,1765877443671,-500.0,0.00010958,2]
[398622297,1765877443680,-500.0,0.00010958,2]
[398622299,1765877443690,-500.0,0.00010958,2]
[398622301,1765877443700,-123.53265339,0.00010958,2]
[398622542,1765877446341,-410.96734661,0.00010958,2]
[398622544,1765877446351,-500.0,0.00010958,2]
[398622546,1765877446360,-500.0,0.00010958,2]
[398622548,1765877446370,-500.0,0.00010958,2]
[398622550,1765877446379,-500.0,0.00010958,2]
[398622552,1765877446388,-500.0,0.00010958,2]
[398622554,1765877446398,-500.0,0.00010958,2]
[398622556,1765877446408,-500.0,0.00010958,2]
[398622558,1765877446418,-500.0,0.00010958,2]
[398622561,1765877446428,-278.30468696,0.00010958,2]
[398623588,1765877558469,900.0,9.314e-05,2]
[398623590,1765877725233,-397.97955209,0.0001,2]
[398623640,1765878474761,6215.39553579,9.9e-05,2]
[398623641,1765878474789,2472.39619206,9.9e-05,2]
[398623675,1765878630639,7527.61380794,9.9e-05,2]
[398623676,1765878630663,10000.01,9.9e-05,2]
[398623677,1765878630688,10000.01,9.9e-05,2]
[398623678,1765878630712,10000.01,9.9e-05,2]
[398623679,1765878630918,10000.01,9.9e-05,2]
[398623685,1765878632353,-310.21679657,9.9e-05,2]
[398623686,1765878632408,-1703.18397182,9.9e-05,2]
[398623687,1765878632420,-874.63818407,9.9e-05,2]
[398623688,1765878632464,-250.0,9.9e-05,2]
[398623711,1765878638452,-781.84131774,9.9e-05,2]
[398623712,1765878638464,-1116.45259264,9.9e-05,2]
[398624078,1765878643533,-5910.00008699,9.9e-05,2]
[398624081,1765878643545,-4381.53923045,9.9e-05,2]
[398624092,1765878643638,-23241.36473789,9.9e-05,2]
[398624094,1765878643649,-297.75646803,9.9e-05,2]
[398624096,1765878643662,-272.83182917,9.9e-05,2]
[398624368,1765878646507,-1411.95357189,9.9e-05,2]
[398624369,1765878646518,-14030.85764871,9.9e-05,2]
[398624370,1765878646528,-1437.1938843,9.9e-05,2]
[398624714,1765878650077,5000.0,9.849e-05,2]
[398625490,1765878661487,150.0,7.422e-05,2]
[398625491,1765878661899,150.0,8.096e-05,2]
[398625514,1765878669396,-150.0,8.771e-05,2]
[398625515,1765878669420,-7.04829252,9.446e-05,2]
[398625518,1765878680288,-150.0,8.683e-05,2]
[398625519,1765878680319,-142.95170748,9.446e-05,2]
[398625532,1765878702971,-5000.0,9.8e-05,2]
[398625544,1765878720764,0.01,9.849e-05,2]
[398625545,1765878720785,4999.99,9.849e-05,2]
[398625551,1765878732377,150.0,7.64e-05,2]
[398625552,1765878732809,232.66,8.334e-05,2]
[398625554,1765878733222,348.99,9.029e-05,2]
[398625555,1765878733623,465.33,9.723e-05,2]
[398625556,1765878744105,3803.04,9.849e-05,2]
[398625557,1765878744126,1196.96,9.849e-05,2]
[398625558,1765878762330,1100.0,9.314e-05,2]
[398625559,1765878767774,5000.0,9.849e-05,2]
[398625560,1765878791799,2703.05,9.849e-05,2]
[398625561,1765878791821,2296.95,9.849e-05,2]
[398625564,1765878811001,150.0,7.569e-05,2]
[398625565,1765878811893,232.74,8.257e-05,2]
[398625566,1765878812310,349.11,8.945e-05,2]
[398625567,1765878812736,465.48,9.634e-05,2]
[398625569,1765878815755,5000.0,9.849e-05,2]
[398625571,1765878839151,1505.73,9.849e-05,2]
[398625572,1765878839174,3494.27,9.849e-05,2]
[398625575,1765878862393,5000.0,9.849e-05,2]
[398625576,1765878885556,1505.74,9.849e-05,2]
[398625577,1765878885577,3494.26,9.849e-05,2]
[398625578,1765878891056,150.0,7.646e-05,2]
[398625579,1765878891476,236.63,8.341e-05,2]
[398625580,1765878891899,354.94,9.036e-05,2]
[398625581,1765878892314,473.25,9.731e-05,2]
[398625583,1765878909249,5000.0,9.849e-05,2]
[398625597,1765878933439,290.93,9.849e-05,2]
[398625598,1765878933466,3423.84176554,9.849e-05,2]
[398625621,1765878972122,150.0,7.728e-05,2]
[398625622,1765878972530,205.7,8.43e-05,2]
[398625623,1765878972927,308.56,9.133e-05,2]
[398625624,1765878973409,411.41,9.835e-05,2]
[398625685,1765879050778,150.0,7.721e-05,2]
[398625686,1765879051196,178.32,8.423e-05,2]
[398625687,1765879051618,267.48,9.125e-05,2]
[398625688,1765879052038,356.65,9.827e-05,2]
[398625690,1765879127009,150.0,7.346e-05,2]
[398625691,1765879127440,154.08,8.014e-05,2]
[398625692,1765879127846,231.12,8.681e-05,2]
[398625693,1765879128245,308.16,9.349e-05,2]
[398625733,1765879201925,150.0,7.349e-05,2]
[398625734,1765879202669,150.0,8.017e-05,2]
[398625735,1765879203120,198.92,8.685e-05,2]
[398625736,1765879203570,265.22,9.353e-05,2]
[398625737,1765879203886,179.42298541,9.629e-05,2]
[398625777,1765879277901,150.0,7.56e-05,2]
[398625778,1765879278309,150.0,8.247e-05,2]
[398625779,1765879278708,169.74,8.935e-05,2]
[398625780,1765879279127,226.32,9.622e-05,2]
[398625805,1765879354295,150.0,7.485e-05,2]
[398625806,1765879354704,150.0,8.165e-05,2]
[398625807,1765879355137,150.0,8.846e-05,2]
[398625808,1765879355523,190.89,9.526e-05,2]
[398625823,1765879422681,250.0,9.794e-05,2]
[398625827,1765879430056,150.0,7.486e-05,2]
[398625829,1765879430459,150.0,8.167e-05,2]
[398625830,1765879430847,150.0,8.847e-05,2]
[398625831,1765879431234,158.26,9.528e-05,2]
[398625836,1765879504194,150.0,7.419e-05,2]
[398625837,1765879504593,150.0,8.094e-05,2]
[398625838,1765879505031,150.0,8.768e-05,2]
[398625839,1765879505480,115.91524905,9.443e-05,2]
[398625840,1765879505508,34.08475095,9.443e-05,2]
[398625872,1765879578942,150.0,7.419e-05,2]
[398625873,1765879579600,150.0,8.093e-05,2]
[398625874,1765879579779,150.0,8.768e-05,2]
[398625875,1765879580193,150.0,9.442e-05,2]
[398625877,1765879582598,9365.92524905,8.99e-05,2]
[398625878,1765879582619,48.36792725,8.99e-05,2]
[398625904,1765879637359,9951.64207275,9.8e-05,2]
[398625905,1765879637383,10000.01,9.8e-05,2]
[398625906,1765879637407,10000.01,9.8e-05,2]
[398625907,1765879637430,10000.01,9.8e-05,2]
[398625908,1765879637454,10000.01,9.8e-05,2]
[398625909,1765879637479,1007.91011627,9.8e-05,2]
[398625910,1765879643287,31.94801999,0.00020054,120]
[398625913,1765879650706,150.0,7.633e-05,2]
[398625914,1765879651119,150.0,8.327e-05,2]
[398625915,1765879651550,150.0,9.021e-05,2]
[398625916,1765879652460,150.0,9.715e-05,2]
[398625919,1765879658720,5000.0,9.849e-05,2]
[398625926,1765879674816,3392.09988373,9.849e-05,2]
[398625927,1765879674839,1607.90011627,9.849e-05,2]
[398625931,1765879682953,5000.0,9.849e-05,2]
[398625934,1765879699337,3276.44988693,9.849e-05,2]
[398625935,1765879707097,115.6599968,9.849e-05,2]
[398625936,1765879707121,4884.3400032,9.849e-05,2]
[398625938,1765879720157,150.0,7.344e-05,2]
[398625939,1765879720619,163.5,8.012e-05,2]
[398625940,1765879721028,245.25,8.68e-05,2]
[398625941,1765879721438,327.0,9.348e-05,2]
[398625944,1765879730774,673.81619985,9.849e-05,2]
[398625981,1765879787968,3556.10379695,9.8e-05,2]
[398625982,1765879787993,10000.01,9.8e-05,2]
[398625983,1765879788018,10000.01,9.8e-05,2]
[398625984,1765879788044,10000.01,9.8e-05,2]
[398625985,1765879788067,10000.01,9.8e-05,2]
[398625986,1765879788091,10000.01,9.8e-05,2]
[398625987,1765879788116,10000.01,9.8e-05,2]
[398625988,1765879788142,10000.01,9.8e-05,2]
[398625989,1765879788168,10000.01,9.8e-05,2]
[398625990,1765879788191,10000.01,9.8e-05,2]
[398625996,1765879799701,150.0,7.358e-05,2]
[398625997,1765879800312,150.0,8.027e-05,2]
[398626009,1765879806143,-151.37,8.696e-05,2]
[398626012,1765879809757,-60.06,8.696e-05,2]
[398626013,1765879809783,-288.07234141,8.696e-05,2]
[398626015,1765879814522,-200.32352693,8.696e-05,2]
[398626017,1765879817311,-53.60413166,8.696e-05,2]
[398626018,1765879817338,-105.14495009,9.365e-05,2]
[398626023,1765879826892,-176.75504991,9.271e-05,2]
[398626024,1765879827141,-176.75504991,9.365e-05,2]
[398626025,1765879827171,-300.0,9.799e-05,2]
[398626026,1765879827199,-1200.0,9.799e-05,2]
[398626037,1765879832754,-16722.85423913,9.8e-05,2]
[398626038,1765879832766,-1661.69626281,9.8e-05,2]
[398626053,1765879838686,-1896.94150928,9.8e-05,2]
[398626054,1765879838740,-4612.84910141,9.8e-05,2]
[398626055,1765879838813,-301.43914568,9.8e-05,2]
[398626056,1765879838824,-750.0,9.8e-05,2]
[398626062,1765879840782,-646.87428365,9.8e-05,2]
[398626157,1765879843963,-12593.76840301,9.8e-05,2]
[398626361,1765879846643,-318.71440808,9.8e-05,2]
[398626367,1765879846696,-8035.74999984,9.8e-05,2]
[398626446,1765879847555,-1801.77212347,9.8e-05,2]
[398626465,1765879847864,-7721.94100003,9.702e-05,2]
[398626488,1765879848067,-10000.01,9.702e-05,2]
[398626514,1765879848303,-10000.01,9.702e-05,2]
[398626542,1765879848563,-10000.01,9.702e-05,2]
[398626566,1765879848776,-10000.01,9.702e-05,2]
[398626590,1765879848998,-10000.01,9.702e-05,2]
[398626612,1765879849205,-3873.43870416,9.702e-05,2]
[398626617,1765879849239,-2253.13259168,9.8e-05,2]
[398626634,1765879849387,-10000.01,9.8e-05,2]
[398626662,1765879849643,-10000.01,9.8e-05,2]
[398627441,1765879857950,-10000.01,9.8e-05,2]
[398628690,1765879871543,-300.0,9.701e-05,2]
[398628694,1765879871571,-300.0,9.799e-05,2]
[398628698,1765879871598,-500.0,9.799e-05,2]
[398628702,1765879871628,-500.0,9.799e-05,2]
[398628706,1765879871654,-500.0,9.799e-05,2]
[398628710,1765879871680,-500.0,9.799e-05,2]
[398628714,1765879871707,-500.0,9.799e-05,2]
[398628717,1765879871734,-500.0,9.799e-05,2]
[398628721,1765879871759,-500.0,9.799e-05,2]
[398628725,1765879871787,-500.0,9.799e-05,2]
[398628729,1765879871814,-300.01,9.799e-05,2]
[398628762,1765879872108,-199.99,9.799e-05,2]
[398628765,1765879872137,-504.53973729,9.799e-05,2]
[398628769,1765879872165,-500.0,9.799e-05,2]
[398628773,1765879872192,-264.83086934,9.799e-05,2]
[398628777,1765879872219,-500.0,9.799e-05,2]
[398628781,1765879872246,-500.0,9.799e-05,2]
[398628785,1765879872273,-500.0,9.799e-05,2]
[398628789,1765879872300,-500.0,9.799e-05,2]
[398628793,1765879872327,-500.0,9.799e-05,2]
[398628797,1765879872353,-500.0,9.799e-05,2]
[398628800,1765879872380,-500.0,9.799e-05,2]
[398628813,1765879872484,-500.0,9.799e-05,2]
[398628816,1765879872510,-491.44829436,9.799e-05,2]
[398628820,1765879872536,-220.00217662,9.799e-05,2]
[398628824,1765879872565,-500.0,9.799e-05,2]
[398628828,1765879872593,-500.0,9.799e-05,2]
[398628832,1765879872625,-500.0,9.799e-05,2]
[398628836,1765879872653,-500.0,9.799e-05,2]
[398628840,1765879872682,-500.0,9.799e-05,2]
[398628844,1765879872710,-500.0,9.799e-05,2]
[398628848,1765879872737,-500.0,9.799e-05,2]
[398628852,1765879872765,-77.10905804,9.799e-05,2]
[398628856,1765879872799,-422.89094196,9.799e-05,2]
[398628860,1765879872827,-500.0,9.799e-05,2]
[398628864,1765879872853,-500.0,9.799e-05,2]
[398628910,1765879873501,-192.72143434,9.8e-05,2]
[398628911,1765879873514,-500.0,9.8e-05,2]
[398628912,1765879873526,-7154.22811608,9.8e-05,2]
[398628913,1765879873539,-10000.01,9.8e-05,2]
[398628914,1765879873557,-10000.01,9.8e-05,2]
[398629102,1765879877452,263.94,7.788e-05,2]
[398629182,1765879884397,-492.79504991,8.497e-05,2]
[398629184,1765879885978,-35.09495009,8.497e-05,2]
[398629185,1765879886000,-179.55237564,9.205e-05,2]
[398629186,1765879898465,-612.27762436,9.113e-05,2]
[398629187,1765879898495,-612.27762436,9.205e-05,2]
[398629188,1765879898540,-7550.89950256,9.8e-05,2]
[398629189,1765879898683,-10000.01,9.8e-05,2]
[398629190,1765879921523,-10000.01,9.702e-05,2]
[398629244,1765879944922,-300.0,9.701e-05,2]
[398629245,1765879944956,-9400.01,9.702e-05,2]
[398629246,1765879945172,-10000.01,9.702e-05,2]
[398629249,1765879958585,394.83,7.431e-05,2]
[398629250,1765879959035,789.66,8.106e-05,2]
[398629251,1765879963522,-1184.48,8.782e-05,2]
[398629252,1765879963552,-1579.31,9.458e-05,2]
[398629253,1765879963601,-4472.43,9.702e-05,2]
[398629254,1765879963755,-3087.47365566,9.702e-05,2]
[398629256,1765879979165,3825.06268868,9.702e-05,2]
[398629257,1765879979199,1174.93731132,9.702e-05,2]
[398629259,1765879987748,5000.0,9.702e-05,2]
[398629262,1765880010639,5000.0,9.749e-05,2]
[398629264,1765880033861,0.01,9.749e-05,2]
[398629265,1765880033885,4999.99,9.749e-05,2]
[398629266,1765880038750,421.66,7.358e-05,2]
[398629267,1765880039207,843.31,8.027e-05,2]
[398629268,1765880039626,1264.97,8.696e-05,2]
[398629269,1765880040554,1686.62,9.365e-05,2]
[398629272,1765880057297,783.46,9.749e-05,2]
[398629273,1765880057320,4216.54,9.749e-05,2]
[398629274,1765880070099,150.0,5.2e-07,2]
[398629275,1765880071126,150.0,5.2e-07,2]
[398629276,1765880080642,5000.0,9.749e-05,2]
[398629277,1765880100793,483.47,9.314e-05,2]
[398629278,1765880100814,616.53,9.314e-05,2]
[398629281,1765880110482,5000.0,9.749e-05,2]
[398629283,1765880118127,367.99,7.375e-05,2]
[398629284,1765880118542,735.98,8.045e-05,2]
[398629285,1765880118932,1103.97,8.716e-05,2]
[398629286,1765880119339,1471.96,9.386e-05,2]
[398629288,1765880134717,703.58,9.749e-05,2]
[398629289,1765880134739,4296.42,9.749e-05,2]
[398629291,1765880157846,5000.0,9.749e-05,2]
[398629295,1765880181329,703.59,9.749e-05,2]
[398629296,1765880181351,4296.41,9.749e-05,2]
[398629297,1765880197117,321.16,7.382e-05,2]
[398629298,1765880197535,642.31,8.053e-05,2]
[398629299,1765880197975,963.47,8.724e-05,2]
[398629300,1765880198381,1284.62,9.395e-05,2]
[398629303,1765880205327,2492.04,9.749e-05,2]
[398629304,1765880205349,2507.96,9.749e-05,2]
[398629309,1765880229185,5000.0,9.749e-05,2]
[398629311,1765880252207,2492.05,9.749e-05,2]
[398629312,1765880252228,2507.95,9.749e-05,2]
[398629313,1765880263492,344.416113,9.731e-05,2]
[398629326,1765880275171,280.28,7.373e-05,2]
[398629327,1765880275321,5000.0,9.749e-05,2]
[398629328,1765880275568,560.56,8.043e-05,2]
[398629329,1765880275986,840.84,8.714e-05,2]
[398629330,1765880276416,465.963887,9.384e-05,2]
[398629331,1765880276440,655.156113,9.384e-05,2]
[398629333,1765880291142,5000.0,9.749e-05,2]
[398629334,1765880299513,4344.853887,9.749e-05,2]
[398629335,1765880299535,655.146113,9.749e-05,2]
[398629336,1765880300958,9344.863887,8.849e-05,2]
[398629337,1765880300980,10000.01,8.849e-05,2]
[398629338,1765880301002,10000.01,8.849e-05,2]
[398629339,1765880301024,2562.22419,8.849e-05,2]
[398629340,1765880315350,5000.0,9.748e-05,2]
[398629341,1765880323430,2437.78581,9.748e-05,2]
[398629342,1765880323452,2562.21419,9.748e-05,2]
[398629344,1765880339233,5000.0,9.748e-05,2]
[398629347,1765880346986,2437.79581,9.748e-05,2]
[398629348,1765880347012,2562.20419,9.748e-05,2]
[398629349,1765880353871,244.61,7.357e-05,2]
[398629350,1765880354281,489.22,8.026e-05,2]
[398629351,1765880354679,733.83,8.695e-05,2]
[398629352,1765880355351,978.44,9.364e-05,2]
[398629354,1765880370307,4991.70581,9.748e-05,2]
[398629355,1765880370329,8.29419,9.748e-05,2]
[398629357,1765880393950,5000.0,9.748e-05,2]
[398629367,1765880418574,4991.71581,9.748e-05,2]
[398629368,1765880418596,8.28419,9.748e-05,2]
[398629383,1765880431713,213.48,7.358e-05,2]
[398629384,1765880432124,426.95,8.027e-05,2]
[398629386,1765880432536,640.43,8.696e-05,2]
[398629387,1765880432951,853.91,9.365e-05,2]
[398629398,1765880442071,4888.34308424,9.748e-05,2]
[398629483,1765880512982,186.31,7.371e-05,2]
[398629485,1765880513393,372.61,8.041e-05,2]
[398629486,1765880513787,558.92,8.711e-05,2]
[398629489,1765880514180,745.23,9.381e-05,2]
[398629594,1765880591612,162.6,7.379e-05,2]
[398629595,1765880592023,325.19,8.05e-05,2]
[398629596,1765880592416,487.79,8.721e-05,2]
[398629599,1765880592820,129.96272576,9.391e-05,2]
[398629600,1765880592843,520.41727424,9.391e-05,2]
[398629682,1765880658753,212.3943424,8.848e-05,2]
[398629694,1765880669329,150.0,7.424e-05,2]
[398629697,1765880669736,283.8,8.099e-05,2]
[398629698,1765880670162,425.7,8.773e-05,2]
[398629700,1765880670562,567.61,9.448e-05,2]
[398629731,1765880695792,200.1727129,8.823e-05,2]
[398629808,1765880746897,150.0,7.367e-05,2]
[398629809,1765880747463,247.48,8.037e-05,2]
[398629812,1765880747733,371.21,8.707e-05,2]
[398629813,1765880748159,494.95,9.376e-05,2]
[398629915,1765880813535,6376.27567046,9.7e-05,2]
[398629916,1765880813561,10000.01,9.7e-05,2]
[398629917,1765880813588,10000.01,9.7e-05,2]
[398629918,1765880813613,10000.01,9.7e-05,2]
[398629919,1765880813640,10000.01,9.7e-05,2]
[398629920,1765880813667,10000.01,9.7e-05,2]
[398629921,1765880813692,10000.01,9.7e-05,2]
[398629922,1765880813719,10000.01,9.7e-05,2]
[398629923,1765880813745,10000.01,9.7e-05,2]
[398629924,1765880813774,10000.01,9.7e-05,2]
[398629925,1765880814502,-193.54,9.7e-05,2]
[398629941,1765880826190,150.0,7.354e-05,2]
[398629942,1765880826583,215.31,8.023e-05,2]
[398629951,1765880829366,-250.30022581,8.692e-05,2]
[398629956,1765880831481,-72.66977419,8.692e-05,2]
[398629957,1765880831504,-84.28778558,9.36e-05,2]
[398629958,1765880833729,-176.24101114,9.36e-05,2]
[398629960,1765880854135,-170.09120328,9.36e-05,2]
[398629961,1765880854167,-193.54,9.603e-05,2]
[398629962,1765880854201,-300.0,9.699e-05,2]
[398629974,1765880874333,-233.37298445,8.708e-05,2]
[398629975,1765880876707,-437.84934574,8.708e-05,2]
[398629976,1765880878423,-159.41,8.708e-05,2]
[398629977,1765880881104,-155.67356659,8.708e-05,2]
[398629979,1765880882575,-300.0,8.707e-05,2]
[398629980,1765880883249,-152.03,8.708e-05,2]
[398629983,1765880885403,-153.5,8.707e-05,2]
[398629984,1765880887012,-316.82004982,8.707e-05,2]
[398629986,1765880892024,-198.17877067,8.707e-05,2]
[398629987,1765880894277,-531.50117951,8.707e-05,2]
[398629988,1765880894299,-31.46550657,8.708e-05,2]
[398629991,1765880895030,-3072.74759344,8.708e-05,2]
[398629993,1765880895320,-10000.01,8.708e-05,2]
[398629994,1765880895457,-10000.01,8.708e-05,2]
[398629995,1765880895583,-10000.01,8.708e-05,2]
[398629996,1765880895817,-10000.01,8.708e-05,2]
[398629997,1765880896004,-1642.61743109,8.708e-05,2]
[398629998,1765880896028,-6714.77513782,8.708e-05,2]
[398629999,1765880896081,-10000.01,8.796e-05,2]
[398630000,1765880896174,-10000.01,8.796e-05,2]
[398630001,1765880896288,-10000.01,8.796e-05,2]
[398630002,1765880896843,-302.68,8.796e-05,2]
[398630003,1765880899608,-165.87242082,8.796e-05,2]
[398630004,1765880901570,-235.2304113,8.796e-05,2]
[398630005,1765880903725,-1018.37646941,8.796e-05,2]
[398630007,1765880905935,217.22,7.391e-05,2]
[398630008,1765880906343,434.44,8.063e-05,2]
[398630009,1765880909520,-151.82138089,8.735e-05,2]
[398630010,1765880912557,-251.79547661,8.735e-05,2]
[398630011,1765880916384,-219.45535749,8.735e-05,2]
[398630012,1765880918551,-28.57778501,8.735e-05,2]
[398630013,1765880918575,-456.44036389,8.796e-05,2]
[398630014,1765880921784,-317.12627453,8.796e-05,2]
[398630015,1765880925127,-158.30179163,8.796e-05,2]
[398630016,1765880927133,-203.92087696,8.796e-05,2]
[398630017,1765880928351,-10000.01,8.796e-05,2]
[398630018,1765880928680,-155.87,8.796e-05,2]
[398630019,1765880928958,-413.88704284,8.796e-05,2]
[398630020,1765880929303,-9172.23591432,8.796e-05,2]
[398630021,1765880931272,-196.26551965,8.795e-05,2]
[398630023,1765880931690,-303.73448035,8.795e-05,2]
[398630024,1765880931719,-500.0,8.795e-05,2]
[398630025,1765880931748,-500.0,8.795e-05,2]
[398630026,1765880931779,-499.04981048,8.795e-05,2]
[398630027,1765880931809,-300.0,8.881e-05,2]
[398630028,1765880931841,-300.0,8.881e-05,2]
[398630029,1765880931871,-300.0,8.881e-05,2]
[398630030,1765880931899,-300.0,8.881e-05,2]
[398630031,1765880931927,-300.0,8.881e-05,2]
[398630032,1765880931956,-300.0,8.881e-05,2]
[398630033,1765880931984,-300.0,8.881e-05,2]
[398630034,1765880932011,-300.0,8.881e-05,2]
[398630035,1765880932038,-300.0,8.881e-05,2]
[398630036,1765880932066,-300.0,8.881e-05,2]
[398630037,1765880932094,-94.44141834,8.881e-05,2]
[398630038,1765880932188,-205.55858166,8.881e-05,2]
[398630039,1765880932220,-300.0,8.881e-05,2]
[398630040,1765880932251,-300.0,8.881e-05,2]
[398630041,1765880932282,-300.0,8.881e-05,2]
[398630042,1765880932310,-300.0,8.881e-05,2]
[398630043,1765880932337,-600.0,8.881e-05,2]
[398630044,1765880932364,-1762.65608974,8.9e-05,2]
[398630045,1765880932393,-868.87,9.407e-05,2]
[398630046,1765880932420,-305.8406572,9.578e-05,2]
[398630049,1765880932910,-114.1593428,9.578e-05,2]
[398630050,1765880932919,-205.55858166,9.578e-05,2]
[398630051,1765880933315,-198.5,8.795e-05,2]
[398630072,1765880938010,-254.4404267,8.795e-05,2]
[398630073,1765880941307,-47.0595733,8.795e-05,2]
[398630074,1765880941328,-237.56740804,8.795e-05,2]
[398630075,1765880943461,-151.66,8.707e-05,2]
[398630084,1765880947884,-209.45784387,8.707e-05,2]
[398630093,1765880951003,-185.6041162,8.707e-05,2]
[398630094,1765880952509,-256.91552988,8.707e-05,2]
[398630095,1765880953138,-10359.26215331,8.707e-05,2]
[398630096,1765880953159,-300.0,8.794e-05,2]
[398630097,1765880953180,-239.87342834,8.795e-05,2]
[398630098,1765880953203,-500.0,8.795e-05,2]
[398630099,1765880953231,-500.0,8.795e-05,2]
[398630100,1765880953253,-500.0,8.795e-05,2]
[398630101,1765880953273,-500.0,8.795e-05,2]
[398630102,1765880953296,-500.0,8.795e-05,2]
[398630103,1765880953318,-500.0,8.795e-05,2]
[398630104,1765880953340,-500.0,8.795e-05,2]
[398630105,1765880953363,-547.45287773,8.795e-05,2]
[398630106,1765880953385,-460.42087764,8.795e-05,2]
[398630109,1765880955106,-39.57912236,8.795e-05,2]
[398630110,1765880955128,-463.60225455,8.795e-05,2]
[398630111,1765880956113,-36.39774545,8.795e-05,2]
[398630112,1765880956138,-500.0,8.795e-05,2]
[398630113,1765880956163,-500.0,8.795e-05,2]
[398630114,1765880956188,-500.0,8.795e-05,2]
[398630115,1765880956214,-500.0,8.795e-05,2]
[398630116,1765880956239,-590.94635585,8.795e-05,2]